bitfinex-derivatives/quotes_ETHF0:USTF0_20241231
["timestamp","ask_amount","ask_price","bid_price","bid_amount"]
[1735636386005,3.50333,3389.4,3389.3,0.29553]
[1735636386205,0.29554,3389.3,3389.2,0.29554]
[1735636386506,3.2078,3389.4,3388.9,0.4178]
[1735636386507,0.29555,3389.2,3389.1,0.29554]
[1735636386703,3.2078,3389.4,3389.2,0.29553]
[1735636386704,0.29553,3389.3,3389.2,0.29553]
[1735636387009,3.50333,3389.4,3389.3,0.29553]
[1735636387402,0.29554,3389.3,3389.2,0.29553]
[1735636388015,3.2078,3389.4,3388.9,0.4178]
[1735636388213,3.50333,3389.4,3389.3,0.29553]
[1735636388414,0.29554,3389.3,3389.2,0.29553]
[1735636389103,3.50333,3389.4,3389.3,0.29553]
[1735636389907,3.2078,3389.4,3389.3,0.29553]
[1735636390802,0.7264,3389.7,3389.6,0.2955]
[1735636391005,0.4309,3389.7,3389.6,0.2955]
[1735636391910,0.72639,3389.7,3389.6,0.2955]
[1735636392206,0.29545,3390.2,3390.0,0.29547]
[1735636392409,0.29548,3389.9,3389.8,0.29548]
[1735636393203,0.29548,3390.0,3389.9,0.29547]
[1735636394303,0.29548,3390.0,3389.4,3.13193419]
[1735636394304,0.29546,3390.1,3390.0,0.29546]
[1735636394807,0.75785,3390.2,3390.1,0.29546]
[1735636396204,0.29546,3390.1,3390.0,0.29546]
[1735636396510,0.75785,3390.2,3390.1,0.29546]
[1735636396807,0.4624,3390.2,3389.6,0.8981]
[1735636397007,0.29547,3390.0,3389.6,0.4462]
[1735636397205,0.29552,3389.5,3389.4,0.29551]
[1735636397804,0.29552,3389.4,3389.3,3.95872]
[1735636398110,0.29552,3389.5,3389.4,0.29552]
[1735636398310,3.6437,3389.9,3389.3,3.2078]
[1735636398611,0.2955,3389.7,3389.6,0.2955]
[1735636399407,0.29549,3389.8,3389.7,0.29548]
[1735636399704,1.7184,3390.2,3389.3,3.2078]
[1735636399904,0.4624,3390.2,3389.4,0.73879]
[1735636400211,0.29549,3389.8,3389.7,0.29548]
[1735636400405,0.29551,3389.6,3389.5,0.2955]
[1735636402415,0.29552,3389.5,3389.4,0.29551]
[1735636402602,0.73232,3389.5,3389.3,3.2078]
[1735636402805,0.29552,3389.4,3389.3,3.50332]
[1735636403009,0.29552,3389.4,3389.3,3.50333]
[1735636406206,0.29552,3389.4,3389.3,0.29553]
[1735636406407,0.29554,3389.3,3389.2,0.29552]
[1735636406608,0.29555,3389.1,3389.0,0.29555]
[1735636406807,0.2956,3388.6,3388.5,0.29558]
[1735636407111,0.29559,3388.7,3388.6,0.29558]
[1735636407308,3.2078,3389.0,3388.8,0.29556]
[1735636407309,0.29557,3388.9,3388.8,0.29556]
[1735636407609,0.29557,3388.9,3388.4,1.15611]
[1735636407815,3.2078,3389.0,3388.6,0.29558]
[1735636407816,0.29559,3388.7,3388.6,0.29558]
[1735636408013,0.2956,3388.6,3388.5,0.29559]
[1735636410113,0.2956,3388.6,3388.1,40.8]
[1735636410114,3.2078,3388.6,3388.1,40.8]
[1735636410412,0.29561,3388.5,3388.4,0.2956]
[1735636410910,0.29562,3388.4,3388.3,0.29561]
[1735636413419,3.2078,3388.6,3388.1,40.8]
[1735636413609,0.29561,3388.5,3388.4,0.2956]
[1735636414721,3.2078,3388.6,3388.1,40.8]
[1735636414915,3.50339,3388.6,3388.5,0.2956]
[1735636415114,0.29559,3388.6,3388.5,0.2956]
[1735636415314,0.4342,3388.8,3388.2,0.73905]
[1735636415513,0.72978,3388.8,3388.7,0.29558]
[1735636417717,0.29559,3388.7,3388.6,0.29558]
[1735636419219,0.29562,3388.4,3388.3,0.29561]
[1735636419523,1.0346,3388.5,3388.1,0.29563]
[1735636419825,0.29563,3388.2,3388.1,0.29563]
[1735636421015,3.2078,3388.6,3388.0,0.4468]
[1735636421327,0.29563,3388.3,3388.2,0.29562]
[1735636421930,0.29561,3388.5,3388.4,0.2956]
[1735636424626,0.29563,3388.3,3388.2,0.29561]
[1735636425634,0.29563,3388.1,3388.0,0.4468]
[1735636426832,0.29563,3388.1,3388.0,0.74244]
[1735636427235,0.7391,3388.1,3387.5,3.2078]
[1735636427531,0.29568,3387.7,3387.6,0.72897]
[1735636428734,0.29567,3387.8,3387.7,0.29566]
[1735636429129,4.55263419,3388.5,3387.6,0.4333]
[1735636429130,2.89851,3388.5,3387.6,0.4333]
[1735636429329,0.29564,3388.1,3388.0,0.29563]
[1735636429632,0.29561,3388.5,3388.4,0.2956]
[1735636430331,0.4558,3388.7,3388.5,0.2956]
[1735636430636,0.4466,3388.9,3388.5,0.2956]
[1735636430838,0.29557,3388.8,3388.7,0.29557]
[1735636431729,3.95916,3389.0,3388.9,0.29556]
[1735636431935,0.29557,3388.9,3388.8,0.29557]
[1735636432735,3.2078,3389.0,3388.6,2.39313419]
[1735636432935,3.2078,3389.0,3388.9,2.68869419]
[1735636433137,0.29551,3389.5,3388.9,2.39313419]
[1735636433336,3.6491,3389.6,3389.0,1.3332]
[1735636433337,0.4413,3389.6,3389.0,1.3332]
[1735636433638,0.29553,3389.4,3389.3,0.29552]
[1735636434335,3.2078,3389.6,3389.2,2.39313419]
[1735636434540,3.50326,3390.1,3390.0,0.29546]
[1735636435131,0.4413,3390.3,3389.5,2.39313419]
[1735636435828,0.29548,3389.9,3389.8,0.29548]
[1735636436243,0.4413,3390.3,3389.5,2.39313419]
[1735636436532,0.29546,3390.1,3390.0,0.29546]
[1735636436739,0.29548,3389.9,3389.5,2.39313419]
[1735636436939,0.29548,3389.9,3389.8,0.29548]
[1735636437943,2.83443419,3390.3,3389.1,3.2078]
[1735636438139,0.29547,3390.0,3389.8,0.29548]
[1735636438435,0.29548,3389.9,3389.8,0.29548]
[1735636438838,0.4413,3390.3,3389.5,3.2078]
[1735636439041,0.29547,3390.0,3389.9,0.29547]
[1735636439334,0.29546,3390.1,3390.0,0.29546]
[1735636439540,0.29547,3390.0,3389.9,0.29547]
[1735636439842,0.4413,3390.3,3389.5,3.94658]
[1735636440039,0.29545,3390.2,3390.1,0.29545]
[1735636440234,0.29545,3390.2,3389.8,2.39313419]
[1735636440235,0.4413,3390.3,3389.8,2.39313419]
[1735636440538,0.29546,3390.1,3389.8,2.39313419]
[1735636440736,0.4413,3390.3,3389.8,2.39313419]
[1735636441040,0.29546,3390.2,3390.1,0.29545]
[1735636441240,0.29547,3390.0,3389.9,0.29547]
[1735636441543,0.29548,3389.9,3389.8,2.68861419]
[1735636441841,0.29548,3389.8,3389.7,0.29549]
[1735636442234,0.2955,3389.7,3389.6,0.2955]
[1735636442638,0.73863,3390.2,3389.5,5.60093419]
[1735636442839,0.29549,3389.8,3389.7,0.29549]
[1735636443240,0.4413,3390.3,3389.5,5.60093419]
[1735636443438,0.29547,3390.1,3390.0,0.29546]
[1735636444242,0.29547,3390.0,3389.9,0.29547]
[1735636444445,0.4413,3390.3,3389.8,2.39313419]
[1735636444644,0.4413,3390.3,3390.1,2.39313419]
[1735636444841,0.73675,3390.3,3390.2,0.29545]
[1735636446037,0.4413,3390.3,3390.2,0.29545]
[1735636446243,0.73674,3390.3,3390.2,0.29545]
[1735636446747,0.29544,3390.4,3390.3,0.29543]
[1735636447042,0.29545,3390.3,3390.2,0.29544]
[1735636448545,0.8501,3390.6,3390.1,2.39313419]
[1735636449038,0.29545,3390.3,3390.2,0.29544]
[1735636449441,0.8501,3390.6,3389.9,44.8911]
[1735636449639,0.29547,3390.0,3389.9,0.29547]
[1735636449844,3.2078,3390.4,3389.8,0.4577]
[1735636450044,0.29545,3390.2,3390.1,0.29545]
[1735636450246,3.2078,3390.4,3390.2,0.29544]
[1735636450247,0.29545,3390.3,3390.2,0.29544]
[1735636450653,3.2078,3390.4,3389.9,2.39313419]
[1735636450943,0.29547,3390.1,3390.0,0.29545]
[1735636451942,0.29546,3390.2,3390.1,0.29545]
[1735636452452,0.29545,3390.3,3390.2,0.29544]
[1735636452656,0.29543,3390.5,3390.4,0.29542]
[1735636453943,0.4281,3390.6,3389.9,2.84803419]
[1735636454249,0.29544,3390.4,3390.3,0.29544]
[1735636454551,0.4281,3390.6,3390.0,0.73866]
[1735636454753,0.29544,3390.4,3390.3,0.29543]
[1735636456151,0.29543,3390.5,3390.4,0.29542]
[1735636456556,0.4281,3390.6,3390.0,0.73866]
[1735636456849,0.72352,3390.6,3390.5,0.29542]
[1735636457257,0.29544,3390.5,3390.4,0.29543]
[1735636457552,0.29544,3390.4,3390.3,0.29543]
[1735636459851,0.29546,3390.2,3390.1,0.29545]
[1735636462056,3.2078,3390.4,3389.9,2.39313419]
[1735636462356,0.29547,3390.1,3390.0,0.29546]
[1735636462858,0.29547,3390.0,3389.9,2.68860419]
[1735636463353,0.29548,3389.9,3389.8,0.4577]
[1735636463553,0.29548,3389.9,3389.4,0.29551]
[1735636463554,0.29552,3389.5,3389.4,0.29551]
[1735636463758,3.2078,3389.6,3389.1,0.73886]
[1735636463961,3.50331,3389.6,3389.5,0.29551]
[1735636464156,3.2078,3389.6,3389.5,0.29551]
[1735636464657,3.5033,3389.6,3389.5,0.29551]
[1735636466053,3.2078,3389.6,3389.3,2.84463419]
[1735636466360,0.29555,3389.2,3389.1,0.29554]
[1735636469562,3.2078,3389.6,3389.1,0.73887]
[1735636469751,3.50331,3389.6,3389.5,0.29551]
[1735636470256,3.50331,3389.6,3389.5,41.09551]
[1735636470462,0.29551,3389.6,3389.5,41.09551]
[1735636470663,0.29551,3389.6,3389.5,0.29551]
[1735636473161,0.4298,3389.9,3389.3,2.39313419]
[1735636473469,0.72528,3389.9,3389.8,0.29548]
[1735636474065,0.72528,3389.9,3389.6,0.8739]
[1735636474066,8.14514859,3390.3,3389.6,6.47483419]
[1735636474269,0.29547,3390.1,3390.0,0.29546]
[1735636477765,0.4545,3390.3,3389.6,7.21357419]
[1735636477766,0.29546,3390.2,3390.1,0.29545]
[1735636479573,0.4545,3390.3,3389.6,7.21357419]
[1735636479768,0.4545,3390.3,3389.6,3.26703419]
[1735636479967,0.29549,3389.7,3389.6,0.7219]
[1735636481170,0.73863,3390.2,3389.6,0.4264]
[1735636481374,0.29549,3389.9,3389.8,0.29548]
[1735636481562,0.29549,3389.8,3389.7,0.29548]
[1735636483575,0.4545,3390.3,3389.6,2.81953419]
[1735636483777,0.29549,3389.8,3389.7,0.29548]
[1735636484068,8.60034859,3390.4,3389.9,0.73869]
[1735636484069,8.14514859,3390.4,3389.9,0.73869]
[1735636484375,7.54762859,3390.4,3390.3,0.29544]
[1735636484769,7.84305859,3390.4,3390.3,41.2175]
[1735636485075,1.18057,3391.0,3390.3,41.2175]
[1735636485270,0.29543,3390.5,3390.3,41.2175]
[1735636485472,0.29543,3390.4,3390.3,41.2175]
[1735636486073,0.29543,3390.4,3390.3,0.4175]
[1735636486267,3.2078,3390.8,3390.0,4.99553593]
[1735636486474,0.29546,3390.1,3390.0,4.57223593]
[1735636487275,0.29552,3389.4,3389.3,0.4192]
[1735636488572,0.4499,3389.6,3389.1,4.98973593]
[1735636488771,0.29554,3389.2,3389.1,4.98973593]
[1735636488975,0.29554,3389.2,3389.1,0.4175]
[1735636489273,0.29556,3388.9,3388.8,3.2078]
[1735636503675,4.68556,3389.1,3388.3,0.8726]
[1735636503880,0.29561,3388.4,3388.3,0.8726]
[1735636504686,0.4273,3389.0,3388.4,0.29559]
[1735636504981,0.29558,3388.7,3388.6,5.60093419]
[1735636505186,0.29561,3388.4,3388.3,3.26573419]
[1735636505383,0.29561,3388.4,3388.3,44.36134419]
[1735636505587,3.2078,3389.1,3388.3,44.06573419]
[1735636505787,0.29557,3388.8,3388.7,2.39313419]
[1735636506288,0.29558,3388.7,3388.6,3.2078]
[1735636506477,0.29558,3388.7,3388.6,3.50339]
[1735636510578,0.4273,3389.5,3388.6,3.2078]
[1735636510777,0.29555,3389.2,3389.1,0.29554]
[1735636510981,0.29553,3389.4,3389.3,0.29552]
[1735636511185,0.29553,3389.4,3389.3,1.19972]
[1735636515091,0.29552,3389.5,3389.4,0.29551]
[1735636516489,0.29552,3389.4,3389.3,0.4589]
[1735636516891,0.29555,3389.1,3389.0,3.2078]
[1735636517088,0.29555,3389.1,3389.0,3.50335]
[1735636518002,0.29555,3389.1,3389.0,5.89648419]
[1735636518698,0.29551,3389.7,3389.6,0.29549]
[1735636518892,0.29549,3389.9,3389.5,3.2078]
[1735636519100,0.29549,3389.9,3389.8,0.29547]
[1735636519603,0.29548,3389.8,3389.7,43.48862419]
[1735636521798,0.29548,3389.8,3389.7,40.8]
[1735636522101,0.29549,3389.7,3389.6,0.4556]
[1735636523907,0.2955,3389.6,3389.5,3.2078]
[1735636524301,0.29551,3389.5,3389.4,0.29552]
[1735636525211,0.29551,3389.5,3389.4,2.68865419]
[1735636528811,0.29549,3389.8,3389.7,0.29548]
[1735636530711,0.29549,3389.8,3389.7,0.29549]
[1735636532016,0.29549,3389.7,3389.6,0.7337]
[1735636532409,1.15799,3390.0,3389.5,3.2078]
[1735636532711,0.2955,3389.6,3389.5,3.2078]
[1735636532908,0.2955,3389.6,3389.5,3.50331]
[1735636535214,0.423,3390.2,3389.5,3.2078]
[1735636535411,0.29548,3389.9,3389.8,0.29547]
[1735636535810,0.29548,3389.9,3389.8,0.71217]
[1735636537413,0.29548,3389.9,3389.8,0.4167]
[1735636538922,0.29548,3389.9,3389.8,0.71218]
[1735636540411,0.423,3390.2,3389.8,0.4167]
[1735636540720,0.4408,3390.3,3390.0,2.39313419]
[1735636541015,0.29546,3390.2,3390.1,0.29545]
[1735636541218,0.4452,3390.6,3390.0,2.39313419]
[1735636541423,0.29543,3390.5,3390.4,0.29542]
[1735636542822,0.4452,3390.6,3390.5,0.29542]
[1735636543224,0.74061,3390.6,3390.5,0.29542]
[1735636543419,0.29541,3390.7,3390.6,0.29541]
[1735636543727,3.2078,3390.8,3390.6,2.39313419]
[1735636543919,3.5032,3390.8,3390.7,0.29541]
[1735636544929,0.856,3391.0,3390.7,3.2078]
[1735636545225,0.29538,3391.0,3390.9,2.68851419]
[1735636545826,1.16656,3391.3,3391.2,0.29536]
[1735636546024,1.16656,3391.3,3391.2,2.68849419]
[1735636546224,0.8712,3391.3,3391.2,2.68849419]
[1735636546424,0.29535,3391.4,3391.3,0.29535]
[1735636547820,0.4345,3391.6,3391.3,0.4412]
[1735636548020,0.8727,3391.7,3391.6,0.29533]
[1735636548021,1.16802,3391.7,3391.6,0.29533]
[1735636548420,0.8727,3391.7,3391.5,2.39313419]
[1735636548623,0.8727,3391.7,3391.2,2.39313419]
[1735636548923,0.8727,3391.7,3391.1,3.2078]
[1735636548924,0.8727,3391.7,3391.1,5.60093419]
[1735636549121,0.8727,3391.7,3391.2,0.8704]
[1735636549521,0.29535,3391.4,3391.3,0.29535]
[1735636549919,0.29536,3391.3,3391.2,0.29536]
[1735636550120,0.29536,3391.3,3391.1,5.60093419]
[1735636550121,0.29536,3391.2,3391.1,5.89629419]
[1735636550321,1.61102,3391.7,3391.3,0.29535]
[1735636550322,0.8727,3391.7,3391.3,0.29535]
[1735636550522,0.29535,3391.4,3391.3,0.29535]
[1735636551031,0.29535,3391.5,3391.4,0.29534]
[1735636551724,0.29533,3391.6,3391.5,0.29533]
[1735636551918,0.8727,3391.7,3391.6,0.29533]
[1735636551919,1.16803,3391.7,3391.6,0.29533]
[1735636552926,1.16802,3391.7,3391.6,0.29533]
[1735636553130,0.8727,3391.7,3391.6,0.29533]
[1735636553326,0.4244,3392.1,3391.5,4.0781]
[1735636553536,0.8714,3392.2,3392.0,2.39313419]
[1735636553829,1.16668,3392.2,3392.1,0.29528]
[1735636554230,0.8714,3392.2,3392.0,2.39313419]
[1735636554433,0.29528,3392.1,3392.0,2.68842419]
[1735636554831,0.8714,3392.2,3391.9,3.2078]
[1735636555032,0.29529,3392.0,3391.9,3.5031]
[1735636555735,0.29529,3392.0,3391.9,3.2078]
[1735636555932,0.29534,3391.5,3391.4,5.89628419]
[1735636556228,0.29534,3391.5,3391.4,3.2078]
[1735636556429,0.73828,3391.8,3390.9,3.50318]
[1735636556430,0.29538,3391.0,3390.9,3.50318]
[1735636556737,0.29542,3390.7,3390.6,0.29541]
[1735636556935,0.29542,3390.5,3390.4,3.2078]
[1735636557332,3.13165419,3390.8,3390.0,3.2078]
[1735636557631,0.29546,3390.1,3390.0,3.50326]
[1735636557836,0.29546,3390.2,3390.1,0.29545]
[1735636558134,0.29545,3390.3,3390.2,0.29544]
[1735636560235,0.29546,3390.1,3390.0,3.50326]
[1735636560626,0.443,3390.4,3390.0,3.2078]
[1735636560834,0.29545,3390.2,3390.1,0.29545]
[1735636561336,0.29545,3390.3,3390.2,0.29544]
[1735636561928,0.29546,3390.2,3390.1,0.29545]
[1735636562332,0.73844,3390.4,3390.3,0.29544]
[1735636562932,0.4504,3390.7,3390.6,0.29541]
[1735636563134,0.4554,3391.1,3390.4,3.2078]
[1735636563438,0.8872,3391.1,3391.0,2.39313419]
[1735636563636,8.08025352,3391.4,3391.0,2.39313419]
[1735636563835,0.29534,3391.5,3391.0,2.39313419]
[1735636564044,0.29534,3391.5,3391.4,0.29535]
[1735636564335,8.95715352,3391.6,3391.5,0.29534]
[1735636564743,0.8769,3391.6,3391.5,0.29534]
[1735636565141,0.8769,3391.6,3391.1,1.19434]
[1735636565142,0.8769,3391.6,3391.1,0.4559]
[1735636565338,0.8769,3391.6,3391.4,0.29534]
[1735636565843,0.29534,3391.5,3391.4,0.29534]
[1735636566545,1.17223,3391.6,3391.5,0.29534]
[1735636566948,0.4219,3392.0,3391.3,3.2078]
[1735636567244,0.29531,3391.9,3391.8,0.2953]
[1735636567439,0.2953,3392.0,3391.9,0.2953]
[1735636567634,1.15839,3392.1,3392.0,0.29529]
[1735636567838,0.8631,3392.1,3392.0,0.29529]
[1735636568049,1.15838,3392.1,3392.0,0.29529]
[1735636568346,0.8631,3392.1,3391.8,0.2953]
[1735636568542,0.2953,3391.9,3391.8,0.2953]
[1735636568846,0.29531,3391.9,3391.3,3.2078]
[1735636569047,0.8631,3392.1,3391.4,2.39313419]
[1735636569234,0.29531,3391.9,3391.8,0.29531]
[1735636569442,0.2953,3391.9,3391.8,0.29531]
[1735636569844,0.29529,3392.0,3391.7,0.29531]
[1735636570043,0.29531,3391.9,3391.5,0.29534]
[1735636570244,0.8631,3392.1,3391.4,2.39313419]
[1735636570443,0.29532,3391.8,3391.7,0.29532]
[1735636570639,0.8631,3392.1,3391.4,2.39313419]
[1735636570946,0.29529,3392.0,3391.7,0.29532]
[1735636571142,0.29532,3391.7,3391.6,0.29532]
[1735636571546,0.8631,3392.1,3391.3,3.2078]
[1735636571845,0.2954,3390.8,3390.7,3.2078]
[1735636573349,0.2954,3390.8,3390.7,3.50321]
[1735636573645,0.2954,3390.8,3390.7,3.2078]
[1735636573847,0.73848,3390.9,3390.1,4.1117]
[1735636574051,0.29544,3390.4,3390.3,0.29544]
[1735636574546,0.29545,3390.2,3390.1,3.2078]
[1735636574749,0.29547,3390.0,3389.9,0.29547]
[1735636575342,0.4344,3390.4,3389.8,0.29548]
[1735636575343,0.29548,3389.9,3389.8,0.29548]
[1735636575546,0.29548,3389.8,3389.7,3.50329]
[1735636575851,0.29548,3389.9,3389.8,0.29548]
[1735636576051,0.29548,3389.8,3389.7,3.2078]
[1735636576256,5.73861,3390.3,3389.3,3.2078]
[1735636576257,3.2078,3390.2,3389.3,3.2078]
[1735636576554,0.29552,3389.4,3389.3,3.50333]
[1735636576948,0.29552,3389.4,3389.3,3.2078]
[1735636577549,0.29553,3389.3,3389.1,0.29554]
[1735636577751,3.2078,3389.7,3388.8,5.60093419]
[1735636578046,3.2078,3389.7,3388.5,2.39313419]
[1735636578047,0.73876,3389.6,3388.5,2.39313419]
[1735636578256,3.2078,3389.3,3388.6,0.29558]
[1735636578455,3.2078,3389.3,3388.4,4.1048]
[1735636578643,0.2956,3388.5,3388.3,0.29561]
[1735636578846,0.29558,3388.7,3388.5,0.29559]
[1735636579049,0.29559,3388.6,3388.4,0.2956]
[1735636579547,2.44376,3389.2,3388.2,2.39313419]
[1735636579746,0.29559,3388.6,3388.4,0.2956]
[1735636579943,0.29558,3388.7,3388.5,0.29559]
[1735636581151,2.44376,3389.2,3388.2,2.39313419]
[1735636581455,0.29559,3388.7,3388.4,0.2956]
[1735636581656,0.29559,3388.6,3388.4,0.2956]
[1735636582754,0.29558,3388.7,3388.5,0.29559]
[1735636584553,3.2078,3389.3,3388.5,2.39313419]
[1735636584756,3.2078,3389.9,3389.1,2.39313419]
[1735636585260,0.29551,3389.6,3389.4,0.29551]
[1735636585848,2.39313419,3389.8,3389.2,40.8]
[1735636586052,3.13186419,3389.8,3389.0,0.73055]
[1735636586249,0.29554,3389.2,3389.0,0.73055]
[1735636586453,3.2078,3389.5,3388.9,3.2078]
[1735636586762,0.29555,3389.0,3388.8,0.29557]
[1735636586960,3.2078,3389.5,3388.6,0.4567]
[1735636587160,0.73883,3389.3,3388.6,0.4567]
[1735636587454,0.29558,3388.7,3388.5,3.2078]
[1735636587659,0.29559,3388.6,3388.5,3.50339]
[1735636588264,0.29558,3388.7,3388.6,0.29559]
[1735636588558,0.29558,3388.7,3388.5,3.2078]
[1735636588559,0.29555,3389.0,3388.5,3.50339]
[1735636588857,0.29558,3388.7,3388.6,0.29559]
[1735636589058,3.2078,3389.1,3388.5,3.2078]
[1735636589465,0.29554,3389.2,3389.1,0.29554]
[1735636589660,0.8796,3389.4,3388.5,6.05572946]
[1735636590169,0.29553,3389.3,3389.2,0.29553]
[1735636590561,0.4356,3389.4,3388.8,0.4546]
[1735636590766,0.29554,3389.2,3389.1,0.29554]
[1735636591266,0.4356,3389.4,3388.8,0.4546]
[1735636591461,0.29555,3389.1,3389.0,0.29555]
[1735636592265,0.29554,3389.2,3389.1,0.29554]
[1735636592569,0.29553,3389.3,3389.2,0.29553]
[1735636592762,0.29554,3389.2,3389.1,0.29554]
[1735636593068,3.50332,3389.5,3389.4,0.29552]
[1735636593268,3.2078,3389.5,3389.4,0.29552]
[1735636594062,3.2078,3389.5,3389.3,0.29552]
[1735636594364,0.29551,3389.6,3389.5,0.2955]
[1735636594570,3.94648,3390.0,3389.1,0.4611]
[1735636594767,0.29553,3389.3,3389.2,0.29553]
[1735636594970,0.29554,3389.2,3389.1,0.4611]
[1735636595771,0.29554,3389.2,3389.1,0.75665]
[1735636596164,3.2078,3389.6,3389.1,0.4611]
[1735636596469,4.0629,3390.0,3389.1,0.4611]
[1735636596662,0.29553,3389.3,3389.2,0.29553]
[1735636597167,0.29553,3389.4,3389.3,0.29552]
[1735636598170,0.29553,3389.4,3389.2,0.29554]
[1735636598364,0.29553,3389.4,3389.3,0.29552]
[1735636598768,0.73872,3389.8,3389.1,0.4611]
[1735636599072,0.29554,3389.2,3389.1,0.4611]
[1735636599369,0.29554,3389.3,3389.2,0.29553]
[1735636599572,0.29552,3389.4,3389.3,0.29552]
[1735636599774,3.2078,3389.9,3389.1,0.4611]
[1735636599959,0.29553,3389.4,3389.3,0.29552]
[1735636600162,0.29552,3389.5,3389.4,0.29551]
[1735636600476,0.2955,3389.7,3389.6,0.29549]
[1735636601465,0.2955,3389.7,3389.6,0.2955]
[1735636602369,3.50328,3389.9,3389.8,0.29548]
[1735636602776,0.29548,3389.9,3389.8,0.29548]
[1735636603272,0.4191,3390.3,3390.0,0.29546]
[1735636603273,0.29546,3390.1,3390.0,0.29546]
[1735636604360,0.29548,3390.0,3389.9,0.29547]
[1735636605374,0.4191,3390.3,3389.6,3.2078]
[1735636605673,0.29546,3390.1,3390.0,0.29546]
[1735636605879,0.29548,3390.0,3389.9,0.29547]
[1735636608169,0.4191,3390.3,3389.8,0.4488]
[1735636608365,0.29544,3390.4,3390.3,0.29544]
[1735636608572,0.29541,3390.7,3390.6,0.29541]
[1735636608974,3.2078,3390.8,3390.7,0.29541]
[1735636609167,0.29537,3391.2,3391.1,0.29536]
[1735636609371,0.29538,3391.1,3391.0,0.29538]
[1735636609573,0.29537,3391.2,3391.1,0.29536]
[1735636609876,4.522,3391.5,3390.6,5.58840378]
[1735636609877,4.522,3391.5,3390.6,6.04040378]
[1735636610080,3.2078,3391.5,3390.9,2.38060378]
[1735636610282,3.2078,3391.5,3390.8,2.84401411]
[1735636610578,0.29535,3391.4,3391.3,0.29535]
[1735636610772,3.2078,3391.5,3390.9,0.4241]
[1735636610972,0.29534,3391.5,3391.4,0.29534]
[1735636611880,0.29533,3391.6,3391.5,0.29533]
[1735636612083,0.29534,3391.5,3391.4,0.29534]
[1735636613181,3.2078,3391.9,3391.1,3.2078]
[1735636613572,0.29534,3391.5,3391.4,0.29534]
[1735636614182,0.29532,3391.7,3391.6,0.29532]
[1735636614682,0.29533,3391.7,3391.6,0.29533]
[1735636614973,0.29534,3391.5,3391.4,0.29534]
[1735636615680,0.29536,3391.3,3391.2,0.29536]
[1735636616879,0.29536,3391.3,3391.1,3.2078]
[1735636616880,3.2078,3391.9,3391.1,3.2078]
[1735636617070,0.29536,3391.2,3391.1,3.2078]
[1735636618376,0.29541,3390.7,3390.6,3.50321]
[1735636618682,0.29541,3390.7,3390.6,3.2078]
[1735636619281,0.73854,3390.7,3390.1,0.29545]
[1735636619478,0.29546,3390.2,3390.1,0.29545]
[1735636619874,0.29546,3390.2,3390.1,41.09545]
[1735636620386,0.29546,3390.2,3390.1,0.29545]
[1735636620876,0.29546,3390.1,3390.0,3.50326]
[1735636621072,0.29546,3390.1,3390.0,3.50327]
[1735636621582,0.29544,3390.3,3390.2,0.29544]
[1735636622976,0.29546,3390.1,3390.0,3.50326]
[1735636623684,0.4505,3390.4,3390.0,3.2078]
[1735636623885,0.29545,3390.3,3390.2,0.29544]
[1735636625289,0.29545,3390.3,3390.0,3.2078]
[1735636625290,0.29546,3390.2,3390.1,0.29546]
[1735636625586,0.29547,3390.0,3389.9,0.29546]
[1735636625781,1.1891,3390.4,3389.8,40.8]
[1735636625782,0.4505,3390.4,3389.8,40.8]
[1735636625982,0.29547,3390.1,3390.0,0.29546]
[1735636626377,0.29548,3389.9,3389.8,40.8]
[1735636626576,0.29548,3389.8,3389.7,0.29549]
[1735636627385,0.29548,3390.0,3389.9,0.29547]
[1735636627584,3.2078,3390.3,3389.6,40.8]
[1735636627884,3.50325,3390.3,3390.2,0.29545]
[1735636628086,0.73863,3390.2,3389.6,40.8]
[1735636628286,0.29549,3389.8,3389.7,0.29549]
[1735636628876,0.29549,3389.8,3389.6,40.8]
[1735636628877,0.29549,3389.7,3389.6,40.8]
[1735636629088,0.29549,3389.7,3389.5,3.2078]
[1735636629285,0.29549,3389.7,3389.6,0.2955]
[1735636630690,1.6975,3390.4,3389.5,3.2078]
[1735636630691,0.4505,3390.4,3389.5,3.2078]
[1735636630887,0.29546,3390.2,3390.1,0.29545]
[1735636631088,0.4505,3390.4,3389.9,3.2078]
[1735636631286,0.29551,3389.6,3389.5,0.2955]
[1735636631587,0.73869,3390.0,3389.4,4.0897]
[1735636631787,0.29551,3389.5,3389.4,3.50332]
[1735636631989,0.29551,3389.5,3389.4,0.29552]
[1735636632187,0.2955,3389.8,3389.7,0.29549]
[1735636632784,0.75028,3389.9,3389.8,0.29548]
[1735636633383,0.4365,3390.2,3390.0,0.29546]
[1735636633384,0.29547,3390.1,3390.0,0.29546]
[1735636633587,0.4365,3390.2,3389.5,1.61557]
[1735636633788,0.29548,3390.0,3389.9,0.29546]
[1735636634189,0.4365,3390.2,3389.5,1.61557]
[1735636634489,0.29544,3390.3,3390.2,0.29544]
[1735636634891,0.29544,3390.3,3389.9,0.7387]
[1735636634892,0.75224,3390.4,3390.3,0.29544]
[1735636635186,4.4538,3390.7,3390.2,3.2078]
[1735636635187,3.2078,3390.7,3390.2,3.2078]
[1735636635393,3.2078,3390.7,3390.6,0.29541]
[1735636635997,0.4498,3391.2,3390.3,0.4335]
[1735636636186,0.29537,3391.1,3391.0,0.29537]
[1735636636888,0.29539,3391.0,3390.9,0.29538]
[1735636637395,0.29538,3391.1,3391.0,0.29537]